Cogmind - Beta 13 @@@ ROGUE MODE // 2024.04.18 @ 14:11:45 Player: KIWA Result: Destroyed by YI-UF0 with YI-UF0's Doublenader Performance ------------- Evolutions (0) 0 Regions Visited (4) 800 Robots Destroyed (26) 130 Value Destroyed (421) 421 Prototype IDs (3) 60 Alien Tech Used (0) 0 Bonus (300) 300 TOTAL SCORE: 1711 Bonus ------- Aligned with FarCom 300 Cogmind --------- Core Integrity 0/250 Matter 111/300 Energy 100/100 System Corruption 1% Temperature Cool (0) Movement Walking (170) Ox1 Location -9/Mines Parts ------- > --- POWER (1) -------- (None) > --- PROPULSION (2) --- Potential Leg Potential Leg > --- UTILITY (2) ------ Huge Storage Unit Signal Interpreter > --- WEAPON (2) ------- (None) > --- INVENTORY (25) --- Light Treads Structural Scanner ECM Suite Shield Generator Hacking Suite Heavy Assault Rifle Heavy Assault Rifle Grenade Launcher Rocket Launcher Datajack Mining Laser Explosive Trap Explosive Trap Explosive Trap Explosive Trap Peak State ------------ > --- POWER ------------ Ion Engine > --- PROPULSION ------- Potential Leg Potential Leg > --- UTILITY ---------- Large Storage Unit ECM Suite > --- WEAPON ----------- Slug Cannon Rocket Launcher > --- INVENTORY -------- Light Treads Structural Scanner Signal Interpreter ECM Suite ECM Suite Shield Generator Hacking Suite Authchip [Storage] Authchip [Armor] Heavy Assault Rifle Heavy Assault Rifle Grenade Launcher Grenade Launcher Datajack Mining Laser [Rating: 31] Favorites ----------- Power Ion Engine Engine Ion Engine Propulsion Light Treads Treads Light Treads Leg Potential Leg Utility Large Storage Unit Device Shield Generator Storage Large Storage Unit Processor Transport Network Coupler Weapon Grenade Launcher Energy Gun Small Laser Energy Cannon Guided Plasma Cannon Ballistic Gun Heavy Assault Rifle Ballistic Cannon Slug Cannon Launcher Grenade Launcher Special Weapon Mining Laser Build | -11 -10 -10 -10 -9 ------- Run | Yrd Mat Min Exi Min Slots Evolved . | . . . . . Power . | . . . . . Propulsion . | . . . . . Utility . | . . . . . Weapon . | . . . . . Parts Attached 29 | 3 11 2 9 4 Power 3 | . 3 . . . Engine 3 | . 3 . . . Core . | . . . . . Reactor . | . . . . . Propulsion 7 | 2 1 . 4 . Treads 3 | 2 1 . . . Leg 4 | . . . 4 . Wheel . | . . . . . Hover . | . . . . . Flight . | . . . . . Utility 10 | . 5 1 2 2 Device 3 | . . 1 2 . Storage 5 | . 4 . . 1 Processor 2 | . 1 . . 1 Hackware . | . . . . . Protection . | . . . . . Artifact . | . . . . . Weapon 9 | 1 2 1 3 2 Energy Gun . | . . . . . Energy Cannon 1 | . . . 1 . Ballistic Gun 3 | 1 1 . 1 . Ballistic Cannon 1 | . . . . 1 Launcher 3 | . 1 . 1 1 Special Weapon 1 | . . 1 . . Impact Weapon . | . . . . . Slashing Weapon . | . . . . . Piercing Weapon . | . . . . . Special Melee Weapon . | . . . . . Unidentified Prototypes 3 | . . . 3 . Parts Lost 5 | . 2 . . 3 Power 3 | . 2 . . 1 Propulsion . | . . . . . Utility . | . . . . . Weapon 2 | . . . . 2 Highest Loss Streak 3 | . 1 . . 3 To Critical Strikes . | . . . . . Average Slot Usage (%) 96 | . 95 100 94 99 Engine 13 | . 13 14 14 13 Treads 21 | . 28 28 23 . Leg 6 | . . . 4 28 Device 5 | . . 14 11 6 Storage 14 | . 14 14 14 14 Processor 5 | . 10 . . 7 Ballistic Gun 10 | . 20 . . 4 Ballistic Cannon 1 | . . . . 9 Launcher 10 | . 7 14 11 13 Special Weapon 5 | . . 14 13 . Naked Turns . | . . . . . Heaviest Build 95 | 13 31 31 34 95 Greatest Support 60 | 40 40 40 60 60 Greatest Overweight (x) 9 | . . . 9 1 Average Overweight (x) . | . . . . . Largest Inventory Capacity 30 | 8 30 15 15 25 Average Capacity 13 | 8 9 15 15 19 Most Carried 15 | 6 12 12 15 15 Average Carried 10 | 6 7 11 12 14 Final Capacity 25 | 8 15 15 15 25 Final Carried 15 | 6 12 12 12 15 Class Distribution -------------------- 100% | Mutant Dominant Class ---------------- Mutant | -10/Materials Mutant | -10/Mines Mutant | -10/Exiles Mutant | -9/Mines Resources | -11 -10 -10 -10 -9 ----------- Run | Yrd Mat Min Exi Min Matter Collected 696 | 230 372 . . 94 Remotely . | . . . . . Salvage Created 653 | . 636 . . 17 Parts 46 | . 45 . . 1 Haulers Intercepted 1 | . 1 . . . Recyclers Shooed 3 | . 3 . . . Parts Field Recycled . | . . . . . Retrieved Matter . | . . . . . Parts Self-Destructed . | . . . . . Prevented . | . . . . . Kills | -11 -10 -10 -10 -9 ------- Run | Yrd Mat Min Exi Min Combat Hostiles Destroyed 17 | . 13 . . 4 Guns 13 | . 13 . . . AOE 4 | . . . . 4 Classes Destroyed 7 | . 7 . . . Worker 4 | . 4 . . . Hauler 1 | . 1 . . . Recycler 2 | . 2 . . . Operator 1 | . 1 . . . Watcher 1 | . 1 . . . Swarmer 10 | . 6 . . 4 Grunt 7 | . 7 . . . Best Kill Streak 4 | . 4 . . 3 Combat Bots Only 3 | . 3 . . 3 Max Kills in Single Turn 2 | . 2 . . 2 Gunslinging . | . . . . . Exploded 2 | . . . . 2 Melee . | . . . . . Uniques/NPCs Destroyed . | . . . . . Combat | -11 -10 -10 -10 -9 -------- Run | Yrd Mat Min Exi Min Hostile Shots Fired 108 | . 73 . . 35 Missed 28 | . 18 . . 10 Damage Taken 1242 | . 590 . . 652 Core 287 | . 107 . . 180 Absorbed by Shields . | . . . . . Core Remaining (%) 100 | 100 . . . . Volleys Fired 93 | . 75 3 1 14 Largest 2 | . 2 1 1 2 Hottest 100 | . 53 100 100 81 Shots Fired 139 | . 116 3 1 19 Gun 114 | . 114 . . . Cannon 14 | . . . . 14 Launcher 7 | . 2 . . 5 Special 4 | . . 3 1 . Kinetic 128 | . 114 . . 14 Thermal 4 | . . 3 1 . Explosive 7 | . 2 . . 5 Electromagnetic . | . . . . . Robot Hit Streak 23 | . 23 . . 1 Robot Miss Streak 5 | . 3 . . 5 Penetration Max . | . . . . . Secondary Targets 1 | . 1 . . . Max Gunslinging Chain 1 | . 1 . . . Shots Hit Robots 78 | . 75 . . 3 Core Hits 38 | . 31 . . 7 Critical Kills 2 | . 2 . . . Critical Parts Destroyed 1 | . 1 . . . Critical Strikes 3 | . 3 . . . Destroy 3 | . 3 . . . Melee Attacks . | . . . . . Impact . | . . . . . Slashing . | . . . . . Piercing . | . . . . . Sneak Attacks . | . . . . . Combat Hostiles . | . . . . . Follow-up Attacks . | . . . . . Damage Inflicted 1194 | . 981 . . 213 Guns 876 | . 876 . . . Cannons 45 | . . . . 45 Explosions 223 | . 57 . . 166 Melee . | . . . . . Ramming 50 | . 48 . . 2 Kinetic 921 | . 876 . . 45 Thermal . | . . . . . Explosive 223 | . 57 . . 166 Electromagnetic . | . . . . . Impact . | . . . . . Slashing . | . . . . . Piercing . | . . . . . Highest Corruption 1 | . 1 1 1 1 Average Corruption 1 | . 1 1 1 1 Corruption Purged . | . . . . . Corruption Blocked . | . . . . . Effects 19 | . 7 . 8 4 Message Errors 5 | . 3 . 1 1 Matter Fused 1 | . . . 1 . Heat Flow Errors 3 | . 1 . 2 . Energy Discharges 2 | . . . 1 1 Data Loss (minor) 4 | . 2 . 1 1 Data Loss (major) 2 | . . . 1 1 Alerts 2 | . 1 . 1 . Overload Shots . | . . . . . Overflow Damage 25 | . . . . 25 Projectiles 25 | . . . . 25 Explosions . | . . . . . Melee . | . . . . . Knockbacks 1 | . . . . 1 Impact . | . . . . . Kinetic 1 | . . . . 1 Secondary . | . . . . . Self-Inflicted Damage 40 | . 4 . . 36 Shots 3 | . 1 . . 2 Rammed 5 | . 5 . . . Targets Rammed 7 | . 6 . . 1 Kicked 1 | . . . . 1 Crushed 1 | . 1 . . . Highest Temperature 178 | . 178 60 169 63 Average Temperature 38 | . 34 30 69 25 Received Heat Transfer 216 | . 216 . . . Siege Activations . | . . . . . Robots Corrupted . | . . . . . Combat Hostiles . | . . . . . Parts Fried . | . . . . . Impact Corruptions . | . . . . . Robots Melted . | . . . . . Combat Hostiles . | . . . . . Parts Melted . | . . . . . Heat Transferred . | . . . . . Parts Sabotaged . | . . . . . Parts Stolen . | . . . . . Parts Stripped . | . . . . . Power Chain Reactions . | . . . . . Alert | -11 -10 -10 -10 -9 ------- Run | Yrd Mat Min Exi Min Peak Influence 242 | . 242 48 . 137 Initial 46 | . . 46 . . Average 94 | . 120 47 . 41 Maximum Alert Level 1 | . 1 . . . Low Security (%) 79 | 100 69 100 . 100 Level 1 20 | . 30 . . . Level 2 . | . . . . . Level 3 . | . . . . . Level 4 . | . . . . . Level 5 . | . . . . . High Security . | . . . . . Max Security . | . . . . . Squads Dispatched 3 | . 3 . . . Investigation 2 | . 2 . . . Extermination . | . . . . . Reinforcement 1 | . 1 . . . Assault . | . . . . . Garrison . | . . . . . Intercept . | . . . . . Searches Triggered . | . . . . . Construction Impeded . | . . . . . Haulers Reinforced . | . . . . . Active Scanning Responses . | . . . . . Cargo Convoy Interrupts . | . . . . . Stealth | -11 -10 -10 -10 -9 --------- Run | Yrd Mat Min Exi Min Distress Signals . | . . . . . Communications Jammed . | . . . . . Distress Signals . | . . . . . Times Spotted 32 | . 27 . . 5 Peak Tracking Total 5 | . 5 . . 4 Tactical Retreats 4 | . 3 . . 1 Traps | -11 -10 -10 -10 -9 ------- Run | Yrd Mat Min Exi Min Traps Triggered 3 | . 3 . . . Indirectly . | . . . . . Trap Hack Attempts . | . . . . . Triggered . | . . . . . Disarmed . | . . . . . Reprogrammed . | . . . . . Reused . | . . . . . Traps Extracted . | . . . . . Installed . | . . . . . Triggered . | . . . . . Most Traps Carried 4 | . . . . 4 Machines | -11 -10 -10 -10 -9 ---------- Run | Yrd Mat Min Exi Min Machines Disabled 3 | . 3 . . . Max in Single Turn 1 | . 1 . . . Machines Repaired . | . . . . . Machines Dismantled . | . . . . . Machines Sabotaged . | . . . . . Overloaded Fab Kills . | . . . . . Hacking | -11 -10 -10 -10 -9 --------- Run | Yrd Mat Min Exi Min Machines Accessed 7 | . 5 . 2 . Terminals 3 | . 3 . . . Fabricators . | . . . . . Repair Stations . | . . . . . Recycling Units 2 | . 2 . . . Scanalyzers . | . . . . . Garrison Access . | . . . . . Total Hacks 34 | . 8 . 26 . Successful 32 | . 6 . 26 . Failed 2 | . 2 . . . Catastrophic . | . . . . . Database Lockouts . | . . . . . Manual 1 | . . . 1 . Terminals 6 | . 6 . . . Fabricators . | . . . . . Repair Stations . | . . . . . Recycling Units 2 | . 2 . . . Scanalyzers . | . . . . . Garrison Access . | . . . . . Terminal Hacks 30 | . 4 . 26 . Record 27 | . 1 . 26 . Branch Access Points 1 | . 1 . . . Dispatch Records 1 | . 1 . . . Hauler Manifests 1 | . 1 . . . Fabricator Hacks . | . . . . . Repair Station Hacks . | . . . . . Recycling Unit Hacks 2 | . 2 . . . Report Inventory 2 | . 2 . . . Scanalyzer . | . . . . . Garrison Access Hacks . | . . . . . Unauthorized Hacks . | . . . . . Terminals . | . . . . . Fabricators . | . . . . . Repair Stations . | . . . . . Recycling Units . | . . . . . Scanalyzers . | . . . . . Garrison Access . | . . . . . Data Cores Recovered . | . . . . . Used . | . . . . . Hacking Detections 2 | . 2 . . . Full Trace Events . | . . . . . Feedback Events . | . . . . . Feedback Blocked . | . . . . . Robot Schematics Acquired . | . . . . . Robots Built . | . . . . . Authchips . | . . . . . Time . | . . . . . Total Robot Build Rating . | . . . . . Part Schematics Acquired . | . . . . . Parts Built . | . . . . . Authchips . | . . . . . Time . | . . . . . Total Part Build Rating . | . . . . . Parts Repaired . | . . . . . Time . | . . . . . Parts Recycled . | . . . . . Recycled Matter . | . . . . . Retrieved Matter . | . . . . . Retrieved Components . | . . . . . Parts Scanalyzed . | . . . . . Part Schematics Acquired . | . . . . . Parts Damaged . | . . . . . Bothacking | -11 -10 -10 -10 -9 ------------ Run | Yrd Mat Min Exi Min Used RIF Installer . | . . . . . Robots Hacked . | . . . . . Non-combat . | . . . . . Combat . | . . . . . Robot Hacks Applied . | . . . . . Relay Couplers Released . | . . . . . Fabnet Peak Effective % . | . . . . . Robots Rewired . | . . . . . Allies Hacked . | . . . . . Hacks Repelled . | . . . . . Allies | -11 -10 -10 -10 -9 -------- Run | Yrd Mat Min Exi Min Total Allies . | . . . . . Largest Group . | . . . . . Highest-Rated Group . | . . . . . Highest-Rated Ally . | . . . . . Total Orders . | . . . . . Ally Attacks . | . . . . . Total Damage . | . . . . . Kills . | . . . . . Allies Corrupted . | . . . . . Allies Melted . | . . . . . Intel | -11 -10 -10 -10 -9 ------- Run | Yrd Mat Min Exi Min Robot Analysis Total . | . . . . . Derelict Logs Recovered 1 | . . . . 1 Drone Launches . | . . . . . Drone Recoveries . | . . . . . Exploration | -11 -10 -10 -10 -9 ------------- Run | Yrd Mat Min Exi Min Turns Passed 3054 | 11 1374 90 1009 570 Spaces Moved 1827 | 3 683 44 671 426 Core 5 | . . . 5 . Treads 1245 | 3 683 44 515 . Legs 577 | . . . 151 426 Wheels . | . . . . . Hover . | . . . . . Flight . | . . . . . Fastest Speed 45 | 160 160 160 45 90 Average Speed 144 | 160 160 160 146 115 Slowest Speed 500 | 160 160 160 500 170 Overloaded Moves 1 | . . . 1 . Propulsion Burnouts . | . . . . . Robots Hopped . | . . . . . Cave-ins Triggered . | . . . . . Exploration Rate (%) 56 | 2 89 11 93 89 Regions Visited 4 Branch Regions 3 Pre-discovered Areas 2 | . . . 1 1 Known Exits Taken 1 | . 1 . . . Unknown Exits Taken 3 | 1 . 1 1 . Scrap Searched 2 | . . . . 2 Spaces Dug 3 | . . 2 1 . Terrain Destroyed 61 | . 8 2 1 50 Melee . | . . . . . Projectile 13 | . . 2 1 10 AOE 48 | . 8 . . 40 Terrain Rammed . | . . . . . Walls Destroyed . | . . . . . Machines Disabled . | . . . . . Actions | -11 -10 -10 -10 -9 --------- Run | Yrd Mat Min Exi Min Total 2099 | 8 857 54 693 487 Wait 84 | 3 46 5 . 30 Move 1823 | 2 682 43 670 426 Hop . | . . . . . Pick Up 36 | . 23 1 5 7 Fast Attach 6 | . 5 . 1 . Attach 7 | . 4 . 3 . Detach . | . . . . . Swap 16 | 3 2 2 5 4 Drop 25 | . 14 . 6 5 Fire 93 | . 75 3 1 14 Melee . | . . . . . Ram . | . . . . . Kick 1 | . . . . 1 Crush 6 | . 6 . . . Escape Stasis . | . . . . . Rewire 2 | . . . 2 . Trap . | . . . . . Miscellaneous . | . . . . . Route ------- -11/Scrapyard -10/Materials (discovered 3 exits: [*Mat x2] / *Min) -10/Mines -10/Exiles (discovered 2 exits: [*Min x2]) -9/Mines (discovered 1 exit: [*Mat]) History --------- Turn | Location | Event 6 | -11/Scrapyard | Discovered new exit (range 3) 12 | -11/Scrapyard | Entered Materials 300 | -10/Materials | Discovered new exit (range 16) 306 | -10/Materials | Build established: Mutant 742 | -10/Materials | Discovered new exit (range 16) 1071 | -10/Materials | Discovered new exit (range 5) 1321 | -10/Materials | Identified exit to Mines 1386 | -10/Materials | Entered Mines 1393 | -10/Mines | Received a Rocket Launcher from a helpful Derelict 1468 | -10/Mines | Deemed a non-threat by the Exiles lab entrance 1470 | -10/Mines | Discovered new exit (range 5) 1476 | -10/Mines | Entered Exiles 1521 | -10/Exiles | Met 8R-AWN 1544 | -10/Exiles | Met EX-HEX 1648 | -10/Exiles | Met EX-DEC 1700 | -10/Exiles | Learned location of Zion (-6) 1785 | -10/Exiles | Discovered new exit (range 14) 1918 | -10/Exiles | Visited The Gauntlet 2149 | -10/Exiles | Met EX-BIN 2167 | -10/Exiles | Aligned with FarCom system 2168 | -10/Exiles | Given EX-Vault access code 2292 | -10/Exiles | Opened EX-Vault 2301 | -10/Exiles | Found Prototype Device 2302 | -10/Exiles | Identified Cloak of Protection 2307 | -10/Exiles | Found Prototype Leg 2308 | -10/Exiles | Identified Potential Leg 2310 | -10/Exiles | Found Potential Leg 2325 | -10/Exiles | Found Prototype Energy Cannon 2326 | -10/Exiles | Identified Gui. Plasma Cannon 2363 | -10/Exiles | Warned to stay clear of 0b10 Research branches 2437 | -10/Exiles | Discovered new exit (range 14) 2485 | -10/Exiles | Left Exiles lab with Potential Leg 2485 | -10/Exiles | Entered Mines 2517 | -9/Mines | YI-UF0 nonchalantly dropped a Grenade Launcher on the ground 2647 | -9/Mines | A weapon hastily lodged in a ceiling crevice suddenly fell to the ground 2655 | -9/Mines | Learned location of Storage (-9) 2699 | -9/Mines | Core integrity fell below 50% 2769 | -9/Mines | Found a hidden stash of uninstalled traps 2857 | -9/Mines | Discovered new exit (range 13) 3026 | -9/Mines | Core integrity fell below 20% 3055 | -9/Mines | Destroyed by YI-UF0 with YI-UF0's Doublenader Last Messages --------------- 03006_ Acquired 11 matter. 03013_ Acquired 18 matter. 03025_ K-01 Serf collects debris. 03029_ The unstable cave ceiling collapses. 03029_ T-07 Excavator is excavating. 03033_ The unstable cave ceiling collapses. 03033_ K-01 Serf collects debris. 03033_ T-07 Excavator is excavating. 03035_ K-01 Serf collects debris. 03037_ YI-UF0 mumbles something. 03038_ T-07 Excavator is excavating. 03039_ Ion Engine destroyed. 03040_ K-01 Serf collects debris. 03042_ Grenade Launcher destroyed. 03042_ T-07 Excavator is excavating. 03049_ The unstable cave ceiling collapses. 03051_ T-07 Excavator is excavating. 03053_ Slug Cannon destroyed. 03055_ YI-UF0 mumbles something. 03055_ T-07 Excavator is excavating. Map ----- +----------------------------------------------------+ | ??????????????????????# #??# ##?# #? | | ??????????????????????## *##??## ##??# #? | | ???????????????????????####????####???# #? | | ??????????????????????????????????????# #? | | ?????????????????????????????????????## #? | | ????????????????????????????????????## ## | | ????????????????????????????????????# # | | ????????????????????????????????????# | | ????????????????????????????????????## | | ?????????????????????????????????????## # | | ??????????????????????????????????????# # | | ?????????????????????????????????????## | | ????????????????????????????????????## | | ????????????????????????????????????# | | ????????????????????????????????????# | | ????????????????????????????????????## | | ?????????????????????????????????????# | | ?????????????????????????????????????# | | ?????????????????????????????????????## | | ???????????????????????????????????##?### | | ?????????????????????????????????### ##### | | ????????????????????????????????## ## # | | ??????????????##############?#### # | | ??????????##### ## ## # | | ??????????# # # | | ??????????# t @ | | ??????????## # g | | ??????????????## | | ???????????????######### | | ???????????????????????? # | | ?????????????????????????## | | ???????????????????????????# %! ## # | | ???????????????????????????# #### | | ??????????????????????????# ##??? | | ??????????????????????????# # ##???? | | ??????????????????????????# ###????? | | ?????????????????????????# ##??????? | | ?????????????????????????# #???????? | | ????????????????????????? ###???????? | | ???????????????????????? ##?????????? | | ???????????????????????########??????????? | | ?????????????????????????????????????????? | | ?????????????????????????????????????????? | | | | | | | | | | | | | | | +----------------------------------------------------+ Best States ------------- Heat Dissipation 25 Energy Generation 10 Energy Capacity 250 Matter Stores 300 Matter Capacity 300 Sight Range 16 Terrain Scan Density 10 ECM Strength 1 Evasion (%) 57 Recoil Reduction 2 Authchip Count 4 Item Schematics ----------------- None Robot Schematics ------------------ None Fabricated ------------ Nothing Alien Tech Used ----------------- None Achievements -------------- None Challenges ------------ None Game ------ Seed PrecisionPointyNetwork Manual? 0 Play Time 00:32:53 Cumulative 12.6 hours Start 2024.04.18 @ 13:03:34 End 2024.04.18 @ 14:11:45 Sessions 3 Manual Loads 0 Difficulty Rogue Special Mode None Game No. 26 Rogue 26 Adventurer 0 Explorer 0 Win Type - Total 0 Types 0/0/0/0/0/0/0/0/0 Lore% 15 Gallery% 23 Achievement% 19 Wizard Run 0 Options --------- Layout 1 ASCII 0 Keyboard 0 Movement Mouse Keybinds 0 Fullscreen 2 Font 48/Smallcaps Map View 50x35 Zoom Use 0% Tactical HUD 1 Map Filters NONE Filters NONE Steam 1 RUN: 1cdf456b-d1bd-4419-846a-5b8520ce3876